Cogmind - Beta 15 @@@ ROGUE MODE // 2025.06.23 @ 00:15:40 Player: CheifClapdad Result: Self-destructed Performance ------------- Evolutions (3) 1500 Regions Visited (5) 1000 Robots Destroyed (58) 290 Value Destroyed (1555) 1555 Prototype IDs (1) 20 Alien Tech Used (0) 0 Bonus (815) 815 TOTAL SCORE: 5180 Bonus ------- Pacifist 200 High Alert Combat Kills 115 Entered DSFs 500 Cogmind --------- Core Integrity 407/700 Matter 3/300 Energy 100/100 System Corruption 0% Temperature Cool (0) Movement Core (800) Ox15 Location -7/DSF Parts ------- > --- POWER (1) -------- (None) > --- PROPULSION (4) --- (None) > --- UTILITY (6) ------ High-capacity Storage Unit Targeting Computer > --- WEAPON (2) ------- Advanced Assault Cannon > --- INVENTORY (20) --- Armored Treads Advanced Treads Wheel Cryofiber Web Cryofiber Web Improved Heat Sink High-capacity Matter Pod (0) Weapon Cycler High-powered Tractor Beam High-powered Tractor Beam Flak Cannon Flak Cannon Advanced Assault Cannon Mini Grenade Launcher Improved Grenade Launcher Plasma Cutter Peak State ------------ > --- POWER ------------ Heavy Ion Engine > --- PROPULSION ------- Advanced Treads Advanced Treads Advanced Treads Advanced Treads > --- UTILITY ---------- High-capacity Storage Unit Improved Signal Interpreter Targeting Computer Targeting Computer Medium Armor Plating High-powered Tractor Beam > --- WEAPON ----------- Advanced Assault Cannon Advanced Assault Cannon > --- INVENTORY -------- Armored Treads Advanced Treads Advanced Treads Wheel Cryofiber Web Cryofiber Web Improved Heat Sink High-capacity Matter Pod Weapon Cycler High-powered Tractor Beam High-powered Tractor Beam Flak Cannon Flak Cannon Advanced Assault Cannon Advanced Assault Cannon Mini Grenade Launcher Improved Grenade Launcher Plasma Cutter [Rating: 39] Favorites ----------- Power Improved Ion Engine Engine Improved Ion Engine Propulsion Wheel Treads Light Treads Wheel Wheel Utility High-capacity Storage Unit Device Improved Sensor Array Storage High-capacity Storage Unit Processor Improved Signal Interpreter Protection Light Armor Plating Weapon Assault Rifle Energy Gun Medium Laser Ballistic Gun Assault Rifle Ballistic Cannon Advanced Assault Cannon Build | -11 -10 -9 -8 -7 -7 ------- Run | Yrd Mat Mat Mat Fac DSF Slots Evolved 6 | . . 2 2 2 . Power . | . . . . . . Propulsion 2 | . . 1 1 . . Utility 4 | . . 1 1 2 . Weapon . | . . . . . . Parts Attached 48 | 5 2 5 31 3 2 Power 4 | . . 1 3 . . Engine 4 | . . 1 3 . . Core . | . . . . . . Reactor . | . . . . . . Propulsion 17 | 2 . 2 11 1 1 Treads 8 | 1 . 1 4 1 1 Leg . | . . . . . . Wheel 9 | 1 . 1 7 . . Hover . | . . . . . . Flight . | . . . . . . Utility 15 | 1 1 1 10 2 . Device 2 | . . . 1 1 . Storage 4 | 1 1 . 2 . . Processor 3 | . . . 2 1 . Hackware . | . . . . . . Protection 6 | . . 1 5 . . Artifact . | . . . . . . Weapon 12 | 2 1 1 7 . 1 Energy Gun 1 | 1 . . . . . Energy Cannon . | . . . . . . Ballistic Gun 5 | 1 1 . 3 . . Ballistic Cannon 6 | . . 1 4 . 1 Launcher . | . . . . . . Special Weapon . | . . . . . . Impact Weapon . | . . . . . . Slashing Weapon . | . . . . . . Piercing Weapon . | . . . . . . Special Melee Weapon . | . . . . . . Unidentified Prototypes 1 | . . . 1 . . Parts Lost 32 | . . 1 19 . 12 Power 2 | . . . 1 . 1 Propulsion 15 | . . 1 9 . 5 Utility 10 | . . . 6 . 4 Weapon 5 | . . . 3 . 2 Highest Loss Streak 12 | . . 1 8 . 12 To Critical Strikes . | . . . . . . Average Backups 16 | 2 11 18 18 17 17 Power 1 | 1 2 2 . . . Propulsion 2 | 1 2 2 2 4 3 Utility 4 | . 2 3 5 6 7 Weapon 7 | . 5 9 8 6 5 Tool/Special . | . . . . . . Unused Backups 30 | . . 2 12 . 16 Power 1 | . . 1 . . . Propulsion 4 | . . 1 . . 3 Utility 11 | . . . 4 . 7 Weapon 13 | . . . 8 . 5 Tool/Special 1 | . . . . . 1 Average Slot Usage (%) 83 | . 71 78 86 99 77 Engine 4 | . . 1 6 7 4 Treads 14 | . 14 12 13 29 22 Wheel 14 | . 14 19 16 . . Device 2 | . . . 3 7 6 Storage 11 | . 14 11 11 7 7 Processor 7 | . . . 9 22 15 Protection 6 | . . 10 7 7 4 Energy Gun 2 | . 14 3 . . . Ballistic Gun 7 | . 14 11 6 . . Ballistic Cannon 9 | . . 7 11 15 13 Peak Build Rating 39 | 5 6 12 33 39 39 Average Rating 16 | 3 5 9 20 38 29 On Entrance 15 | . 5 6 12 33 39 Naked Turns . | . . . . . . Heaviest Build 68 | 8 44 56 67 68 68 Greatest Support 88 | 20 20 20 66 88 88 Greatest Overweight (x) 5 | . 4 5 5 . . Average Overweight (x) 2 | . 2 2 2 . . Largest Inventory Capacity 20 | 8 20 20 20 20 20 Average Capacity 18 | 6 15 20 20 20 20 Most Carried 20 | 4 18 20 20 19 18 Average Carried 16 | 2 11 18 18 17 17 Final Capacity 20 | 8 20 20 20 20 20 Final Carried 20 | 4 18 18 20 18 16 Class Distribution -------------------- 88% | Mutant 11% | Scavenger-Mutant Dominant Class ---------------- Mutant | -10/Materials Mutant | -9/Materials Mutant | -8/Materials Mutant | -7/Factory Mutant | -7/DSF Resources | -11 -10 -9 -8 -7 -7 ----------- Run | Yrd Mat Mat Mat Fac DSF Matter Collected 1849 | 162 258 160 1204 . 65 Remotely 65 | . . . . . 65 Salvage Created 1768 | . . 324 1444 . . Parts 110 | . . 22 88 . . Haulers Intercepted 3 | . . . 3 . . Recyclers Shooed 1 | . . . 1 . . Parts Field Recycled . | . . . . . . Retrieved Matter . | . . . . . . Parts Self-Destructed . | . . . . . . Prevented . | . . . . . . Kills | -11 -10 -9 -8 -7 -7 ------- Run | Yrd Mat Mat Mat Fac DSF Combat Hostiles Destroyed 40 | . . 8 32 . . Guns 19 | . . 3 16 . . Cannons 21 | . . 5 16 . . Classes Destroyed 12 | . . 2 10 . . Worker 4 | . . . 4 . . Builder 4 | . . . 4 . . Tunneler 1 | . . . 1 . . Hauler 3 | . . . 3 . . Recycler 4 | . . . 4 . . Watcher 2 | . . . 2 . . Swarmer 11 | . . . 11 . . Grunt 17 | . . 5 12 . . Duelist 2 | . . . 2 . . Sentry 7 | . . 3 4 . . Hunter 2 | . . . 2 . . Heavy 1 | . . . 1 . . Best Kill Streak 10 | . . 4 10 . . Combat Bots Only 5 | . . 4 5 . . Max Kills in Single Turn 2 | . . 1 2 . . Gunslinging . | . . . . . . Exploded . | . . . . . . Melee . | . . . . . . Uniques/NPCs Destroyed . | . . . . . . Combat | -11 -10 -9 -8 -7 -7 -------- Run | Yrd Mat Mat Mat Fac DSF Hostile Shots Fired 342 | . . 32 231 . 79 Missed 96 | . . 10 68 . 18 Hits 246 | . . 22 163 . 61 Melee 7 | . . . 7 . . Projectile 239 | . . 22 156 . 61 Critical Strikes 14 | . . . 10 . 4 Damage Taken 4380 | . . 267 2443 . 1670 Core 697 | . . 14 390 . 293 Absorbed by Shields . | . . . . . . Redirected to Shielding 11 | . . . 11 . . Core Remaining (%) 81 | 100 100 96 29 . . Volleys Fired 180 | . . 18 145 . 17 Largest 2 | . . 2 2 . 2 Hottest 80 | . . 70 80 . 80 Shots Fired 348 | . . 36 284 . 28 Gun 158 | . . 22 136 . . Cannon 190 | . . 14 148 . 28 Launcher . | . . . . . . Special . | . . . . . . Kinetic 344 | . . 32 284 . 28 Thermal 4 | . . 4 . . . Explosive . | . . . . . . Electromagnetic . | . . . . . . Robot Hit Streak 9 | . . 5 9 . 7 Robot Miss Streak 10 | . . 3 10 . 1 Penetration Max . | . . . . . . Secondary Targets 3 | . . . 3 . . Max Gunslinging Chain 1 | . . . 1 . . Shots Hit Robots 224 | . . 22 180 . 22 Core Hits 110 | . . 12 96 . 2 Critical Kills 1 | . . . 1 . . Critical Parts Destroyed 1 | . . . 1 . . Critical Strikes 5 | . . . 5 . . Destroy 2 | . . . 2 . . Blast 3 | . . . 3 . . Melee Attacks . | . . . . . . Impact . | . . . . . . Slashing . | . . . . . . Piercing . | . . . . . . Sneak Attacks . | . . . . . . Combat Hostiles . | . . . . . . Follow-up Attacks . | . . . . . . Damage Inflicted 4356 | . . 356 3413 . 587 Guns 1397 | . . 173 1224 . . Cannons 2959 | . . 183 2189 . 587 Explosions . | . . . . . . Melee . | . . . . . . Ramming . | . . . . . . Kinetic 4330 | . . 330 3413 . 587 Thermal 26 | . . 26 . . . Explosive . | . . . . . . Electromagnetic . | . . . . . . Impact . | . . . . . . Slashing . | . . . . . . Piercing . | . . . . . . Highest Corruption 2 | . . . 2 . . Average Corruption 2 | . . . 2 . . Corruption Purged . | . . . . . . Corruption Blocked . | . . . . . . Effects 11 | . . . 11 . . Message Errors 3 | . . . 3 . . Matter Fused 3 | . . . 3 . . Heat Flow Errors 3 | . . . 3 . . Parts Rejected 1 | . . . 1 . . Data Loss (minor) 1 | . . . 1 . . Overload Shots . | . . . . . . Overflow Damage 35 | . . . 35 . . Projectiles 35 | . . . 35 . . Explosions . | . . . . . . Melee . | . . . . . . Knockbacks 24 | . . 2 22 . . Impact . | . . . . . . Kinetic 20 | . . 2 18 . . Secondary 4 | . . . 4 . . Self-Inflicted Damage . | . . . . . . Shots . | . . . . . . Rammed . | . . . . . . Targets Rammed . | . . . . . . Kicked . | . . . . . . Crushed . | . . . . . . Highest Temperature 255 | . . 10 255 . . Average Temperature 41 | . . 4 45 . . Received Heat Transfer 1170 | . . 126 792 . 252 Siege Activations . | . . . . . . Martial Activations . | . . . . . . Shielding Activations . | . . . . . . Robots Disrupted . | . . . . . . Combat Hostiles . | . . . . . . Robots Corrupted . | . . . . . . Combat Hostiles . | . . . . . . Parts Fried . | . . . . . . Impact Corruptions . | . . . . . . Robots Melted . | . . . . . . Combat Hostiles . | . . . . . . Parts Melted . | . . . . . . Heat Transferred 74 | . . 74 . . . Parts Sabotaged . | . . . . . . Parts Stolen . | . . . . . . Parts Stripped . | . . . . . . Power Chain Reactions . | . . . . . . Alert | -11 -10 -9 -8 -7 -7 ------- Run | Yrd Mat Mat Mat Fac DSF Maximum Alert Level 2 | . . . 2 1 . Low Security (%) 54 | 100 100 100 27 17 100 Level 1 21 | . . . 29 82 . Level 2 24 | . . . 42 . . Level 3 . | . . . . . . Level 4 . | . . . . . . Level 5 . | . . . . . . High Security . | . . . . . . Max Security . | . . . . . . Peak Influence 562 | . . 92 562 250 129 Initial 250 | . . . 26 250 129 Average 202 | . . 32 321 217 88 Influence Increases 1446 | . . 212 1229 5 . Destroy 0b10 Robot/C 800 | . . 160 640 . . Destroy 0b10 Robot/NC 90 | . . . 90 . . Destroy Leader 200 | . . 50 150 . . Successful Hack 5 | . . . . 5 . Disable Machine 30 | . . . 30 . . Anti-Garrison Action 200 | . . . 200 . . Destroy Structure 16 | . . 2 14 . . Partial Spotted 30 | . . . 30 . . Lose Combat Pursuer 75 | . . . 75 . . Influence Decreases 1437 | . . 150 740 371 176 Entered New Map 393 | . . . 36 301 56 Time Decay 724 | . . 140 514 70 . Lost Part 320 | . . 10 190 . 120 Squads Dispatched 8 | . 1 2 4 . 1 Investigation 4 | . 1 . 3 . . Extermination . | . . . . . . Reinforcement 4 | . . 2 1 . 1 Assault . | . . . . . . Garrison . | . . . . . . Intercept . | . . . . . . Searches Triggered . | . . . . . . Construction Impeded . | . . . . . . Haulers Reinforced . | . . . . . . Active Scanning Responses . | . . . . . . Cargo Convoy Interrupts . | . . . . . . Stealth | -11 -10 -9 -8 -7 -7 --------- Run | Yrd Mat Mat Mat Fac DSF Distress Signals 8 | . 1 2 5 . . Communications Jammed . | . . . . . . Distress Signals . | . . . . . . Times Spotted 60 | . . 12 44 . 4 Peak Tracking Total 6 | . 1 5 6 . 4 Tactical Retreats 2 | . . . 2 . . Traps | -11 -10 -9 -8 -7 -7 ------- Run | Yrd Mat Mat Mat Fac DSF Traps Triggered 4 | . 1 . 3 . . Indirectly . | . . . . . . Trap Hack Attempts . | . . . . . . Triggered . | . . . . . . Disarmed . | . . . . . . Reprogrammed . | . . . . . . Reused . | . . . . . . Traps Extracted . | . . . . . . Installed . | . . . . . . Triggered . | . . . . . . Machines | -11 -10 -9 -8 -7 -7 ---------- Run | Yrd Mat Mat Mat Fac DSF Machines Disabled 2 | . . . 2 . . Max in Single Turn 1 | . . . 1 . . Garrison Access 1 | . . . 1 . . Machines Repaired . | . . . . . . Machines Dismantled . | . . . . . . Machines Sabotaged . | . . . . . . Overloaded Fab Kills . | . . . . . . Hacking | -11 -10 -9 -8 -7 -7 --------- Run | Yrd Mat Mat Mat Fac DSF Machines Accessed 2 | . . . 1 1 . Terminals 1 | . . . . 1 . Fabricators . | . . . . . . Repair Stations . | . . . . . . Recycling Units . | . . . . . . Scanalyzers . | . . . . . . Garrison Access 1 | . . . 1 . . Total Hacks 3 | . . . 2 1 . Successful 2 | . . . 1 1 . Failed 1 | . . . 1 . . Catastrophic . | . . . . . . Database Lockouts . | . . . . . . Manual 2 | . . . 2 . . Terminals 1 | . . . . 1 . Fabricators . | . . . . . . Repair Stations . | . . . . . . Recycling Units . | . . . . . . Scanalyzers . | . . . . . . Garrison Access 2 | . . . 2 . . Terminal Hacks 1 | . . . . 1 . Open DSF 1 | . . . . 1 . Fabricator Hacks . | . . . . . . Repair Station Hacks . | . . . . . . Recycling Unit Hacks . | . . . . . . Scanalyzer . | . . . . . . Garrison Access Hacks . | . . . . . . Unauthorized Hacks 1 | . . . 1 . . Terminals . | . . . . . . Fabricators . | . . . . . . Repair Stations . | . . . . . . Recycling Units . | . . . . . . Scanalyzers . | . . . . . . Garrison Access 1 | . . . 1 . . Jam 1 | . . . 1 . . Data Cores Recovered . | . . . . . . Used . | . . . . . . Hacking Detections . | . . . . . . Full Trace Events . | . . . . . . Feedback Events . | . . . . . . Feedback Blocked . | . . . . . . Robot Schematics Acquired . | . . . . . . Robots Built . | . . . . . . Authchips . | . . . . . . Time . | . . . . . . Total Robot Build Rating . | . . . . . . Part Schematics Acquired . | . . . . . . Parts Built . | . . . . . . Authchips . | . . . . . . Time . | . . . . . . Total Part Build Rating . | . . . . . . Parts Repaired . | . . . . . . Time . | . . . . . . Parts Recycled . | . . . . . . Recycled Matter . | . . . . . . Retrieved Matter . | . . . . . . Retrieved Components . | . . . . . . Parts Scanalyzed . | . . . . . . Part Schematics Acquired . | . . . . . . Parts Damaged . | . . . . . . Bothacking | -11 -10 -9 -8 -7 -7 ------------ Run | Yrd Mat Mat Mat Fac DSF Used RIF Installer . | . . . . . . Robots Hacked . | . . . . . . Non-combat . | . . . . . . Combat . | . . . . . . Robot Hacks Applied . | . . . . . . Relay Couplers Released . | . . . . . . Fabnet Peak Effective % . | . . . . . . Robots Rewired . | . . . . . . Allies Hacked . | . . . . . . Hacks Repelled . | . . . . . . Allies | -11 -10 -9 -8 -7 -7 -------- Run | Yrd Mat Mat Mat Fac DSF Total Allies . | . . . . . . Largest Group . | . . . . . . Highest-Rated Group . | . . . . . . Highest-Rated Ally . | . . . . . . Total Orders . | . . . . . . Ally Attacks . | . . . . . . Total Damage . | . . . . . . Kills . | . . . . . . Allies Corrupted . | . . . . . . Allies Melted . | . . . . . . Intel | -11 -10 -9 -8 -7 -7 ------- Run | Yrd Mat Mat Mat Fac DSF Active Infowar (turns) 665 | . . . 665 . . Sensors 665 | . . . 665 . . Robot Analysis Total . | . . . . . . Derelict Logs Recovered . | . . . . . . Drone Launches . | . . . . . . Drone Recoveries . | . . . . . . Exploration | -11 -10 -9 -8 -7 -7 ------------- Run | Yrd Mat Mat Mat Fac DSF Turns Passed 2820 | 139 461 384 1616 146 74 Spaces Moved 1556 | 85 301 273 782 98 17 Core 4 | 4 . . . . . Treads 362 | 77 107 . 63 98 17 Legs . | . . . . . . Wheels 1190 | 4 194 273 719 . . Hover . | . . . . . . Flight . | . . . . . . Fastest Speed 50 | 50 140 110 100 145 145 Average Speed 136 | 151 147 116 136 145 145 Slowest Speed 305 | 160 160 155 305 145 145 Overloaded Moves . | . . . . . . Propulsion Burnouts . | . . . . . . Robots Hopped . | . . . . . . Potential Cave-ins . | . . . . . . Cave-ins Triggered . | . . . . . . Exploration Rate (%) 26 | 5 48 24 46 3 31 Regions Visited 5 Branch Regions . Pre-discovered Areas . | . . . . . . Known Exits Taken 2 | . . . 1 1 . Unknown Exits Taken 3 | 1 1 1 . . . Scrap Searched . | . . . . . . Spaces Dug . | . . . . . . Terrain Destroyed 13 | . . 1 12 . . Melee . | . . . . . . Projectile 13 | . . 1 12 . . AOE . | . . . . . . Terrain Rammed . | . . . . . . Walls Destroyed . | . . . . . . Machines Disabled . | . . . . . . Actions | -11 -10 -9 -8 -7 -7 --------- Run | Yrd Mat Mat Mat Fac DSF Total 1914 | 93 320 306 1055 102 38 Wait 42 | . 2 1 37 . 2 Move 1551 | 84 300 272 781 97 17 Hop . | . . . . . . Pick Up 61 | 4 14 7 35 1 . Fast Attach 19 | 5 1 . 13 . . Attach 23 | . . 4 15 2 2 Detach . | . . . . . . Swap 7 | . 1 1 4 1 . Drop 31 | . 2 3 25 1 . Fire 180 | . . 18 145 . 17 Melee . | . . . . . . Ram . | . . . . . . Kick . | . . . . . . Crush . | . . . . . . Escape Stasis . | . . . . . . Rewire . | . . . . . . Trap . | . . . . . . Miscellaneous . | . . . . . . Route ------- -11/Scrapyard -10/Materials (discovered 2 exits: [*Mat] / [*Min]) -9/Materials -8/Materials -7/Factory -7/DSF History --------- Turn | Location | Event 6 | -11/Scrapyard | Discovered new exit (range 15) 140 | -11/Scrapyard | Entered Materials 310 | -10/Materials | Build established: Mutant 508 | -10/Materials | Discovered new exit (range 16) 585 | -10/Materials | Discovered new exit (range 11) 601 | -10/Materials | Entered another Materials area 601 | -9/Materials | Evolved 2 slots: Propulsion x1, Utility x1 962 | -9/Materials | Discovered new exit (range 15) 985 | -9/Materials | Entered another Materials area 985 | -8/Materials | Evolved 2 slots: Propulsion x1, Utility x1 1555 | -8/Materials | Lost 5 parts (3n1u1w) 1896 | -8/Materials | Core integrity fell below 50% 1926 | -8/Materials | Lost 8 parts (1p3n2u2w) 2360 | -8/Materials | Discovered new exit (range 15) 2418 | -8/Materials | Lost 3 parts (1n2u) 2599 | -8/Materials | Identified exit to Factory 2601 | -8/Materials | Entered Factory 2601 | -7/Factory | Evolved 2 slots: Utility x2 2747 | -7/Factory | Identified exit to DSF 2747 | -7/Factory | Entered DSF 2788 | -7/DSF | Additional patrols routed to DSF 2821 | -7/DSF | Self-destructed Last Messages --------------- 02788_ Hostiles detected in DSF, routing additional patrols. 02790_ Hvy. Ion Engine destroyed. 02790_ Med. Armor Plating destroyed. 02791_ Acquired 2 matter. 02791_ Adv. Treads destroyed. 02792_ Targeting Computer destroyed. 02792_ Critical hit (Blast). 02793_ Acquired 4 matter. 02795_ Adv. Treads destroyed. 02796_ Acquired 5 matter. 02800_ Adv. Assault Cannon destroyed. 02800_ Critical hit (Blast). 02801_ Acquired 6 matter. 02804_ Critical hit (Burn: +37). 02806_ Acquired 8 matter. 02806_ Adv. Assault Cannon destroyed. 02810_ Hpw. Tractor Beam destroyed. 02811_ Adv. Treads destroyed. 02813_ Penetrated by Slug. Map ----- +----------------------------------------------------+ | ????????????????????????????????????? | | ????????????????????????????????????? | | ????????????????????????????????????? | | ????????????????????????????????????? | | ????????????????????????????????????? | | ????????????????????????????????????? | | ????????????????????????????????????? | | ????????????????????????????????????? | | ????????????????????????????????????? | | ????????????????????????????????????? | | ????????? ?????????????????????????? | | ????????" ?????????????????????????? | | ????????# ?????????????????????????? | | ????????# ?????????????????????????? | | ????????= ?????????????????????????? | | ????????= ?????????????????????????? | | ???????## #????????????????????????? | | ???????#= ????????????????????????? | | ???????#= ????????????????????????? | | ????????= ????????????????????????? | | ??????### #?####?###???????????????? | | ??????# #?[[[#!!!#?????#?????????? | | ??????# x##[[[;!!!##a% %a?????????? | | ?????##==gg ^ % ????????? | | ?????#;== % H% % ????????? | | ?????#;== @ ^ % ????????? | | ???# ; ##!!!#!!!#???????????????? | | ???#### #?!!!#???????????????????? | | ??????### ######???????????????????? | | ???????#] #??????????????????????? | | ???????#] #??????????????????????? | | ???????#] #??????????????????????? | | ???????## ###??????????????????????? | | ???????#[ ]]#??????????????????????? | | ???????#[ ]]#??????????????????????? | | ???????## ###??????????????????????? | | ??????### ##???#???????????????????? | | ????###"" ## #[[[##??????????????? | | ???#""""" ???????????? | | ???#"##"" ???????????? | | ??????#"""""## # #!! ???????????? | | ??????#"""""#?###???#???????????????? | | ??????####"##???????????????????????? | | ??????????"#????????????????????????? | | ??????????"#????????????????????????? | | ????????????????????????????????????? | | ????????????????????????????????????? | | ????????????????????????????????????? | | ????????????????????????????????????? | | ????????????????????????????????????? | +----------------------------------------------------+ Best States ------------- Heat Dissipation 34 Energy Generation 14 Energy Capacity 280 Matter Stores 300 Matter Capacity 500 Sight Range 16 Robot Scan Range 15 Terrain Scan Density 10 Armor Coverage 225 Weapon Shielding 66 Evasion (%) 44 Targeting Accuracy 10 Recoil Reduction 4 Item Schematics ----------------- None Robot Schematics ------------------ None Fabricated ------------ Nothing Repaired ---------- Nothing Alien Tech Used ----------------- None Achievements -------------- None Challenges ------------ None Game ------ Seed WeightTripodWings Manual? 0 Play Time 00:19:39 Cumulative 89.8 hours Start 2025.06.22 @ 23:14:11 End 2025.06.23 @ 00:15:40 Sessions 3 Manual Loads 0 Difficulty Rogue Special Mode None Game No. 119 Rogue 119 Adventurer 0 Explorer 0 Win Type - Total 1 Types 1/0/0/0/0/0/0/0/0/0 Lore% 38 Gallery% 49 Achievement% 42 Wizard Run 0 Options --------- Layout 1 ASCII 0 Keyboard 0 Movement Arrows Keybinds 0 Fullscreen 1 Font 24/Smallcaps Map View 50x35 Zoom Use 0% Tactical HUD 1 Map Filters NONE Filters NONE Steam X RUN: 80ab843d-43a4-48ab-8b11-6a61a00b7666